bitfinex-derivatives/quotes_BTCF0:USTF0_20210406
["timestamp","ask_amount","ask_price","bid_price","bid_amount"]
[1617720560459,0.09857955,57936.0,57932.0,0.10623432]
[1617720560765,0.09857955,57936.0,57935.0,1.0]
[1617720561161,0.10725655,57937.0,57935.0,1.0]
[1617720561460,0.10725655,57937.0,57932.0,0.10623432]
[1617720563559,0.10725655,57937.0,57927.0,1.0]
[1617720563761,0.22498655,57937.0,57924.0,0.4805]
[1617720563961,0.2,57936.0,57924.0,0.4805]
[1617720564159,0.22498655,57937.0,57924.0,0.4805]
[1617720564565,0.44154898,57935.0,57924.0,0.4805]
[1617720564763,0.2,57934.0,57924.0,0.4805]
[1617720564962,0.44157609,57929.0,57924.0,0.4805]
[1617720565161,0.2,57928.0,57924.0,0.4805]
[1617720565362,0.10725655,57925.0,57924.0,0.4805]
[1617720565562,0.43191655,57925.0,57924.0,0.4805]
[1617720568967,0.30725655,57925.0,57924.0,0.47947761]
[1617720569664,0.30725655,57925.0,57924.0,0.21117761]
[1617720569963,1.30725655,57925.0,57892.0,1.0]
[1617720570164,0.0812,57919.0,57892.0,1.0]
[1617720570363,0.2812,57919.0,57891.0,1.0]
[1617720570964,1.2812,57919.0,57890.0,1.0]
[1617720571365,0.10725655,57891.0,57889.0,1.0]
[1617720571564,0.2,57890.0,57889.0,1.0]
[1617720571765,0.25606655,57891.0,57889.0,1.0]
[1617720572167,0.25606655,57891.0,57889.0,0.9607]
[1617720572366,0.2,57890.0,57889.0,0.9607]
[1617720572766,0.2,57890.0,57889.0,0.9037]
[1617720572967,1.7,57890.0,57889.0,0.0164]
[1617720573367,1.7,57890.0,57868.0,0.10725655]
[1617720573368,2.7,57890.0,57868.0,0.10725655]
[1617720575071,2.7,57890.0,57854.0,1.0]
[1617720575271,2.7,57890.0,57841.0,0.28354295]
[1617720575272,1.0,57870.0,57859.0,0.10725655]
[1617720576879,1.0,57872.0,57859.0,0.10725655]
[1617720577379,0.10725655,57860.0,57859.0,0.10725655]
[1617720578380,1.10725655,57860.0,57859.0,0.10725655]
[1617720579181,0.10725655,57860.0,57859.0,0.10725655]
[1617720579981,0.10725655,57860.0,57840.0,0.4704]
[1617720580982,0.10725655,57860.0,57841.0,0.0512]
[1617720581184,0.10725655,57860.0,57842.0,0.052]
[1617720581384,0.10725655,57843.0,57842.0,0.15925655]
[1617720581783,0.10725655,57843.0,57842.0,0.10725655]
[1617720582685,0.23969655,57843.0,57842.0,0.10725655]
[1617720583787,1.23969655,57843.0,57842.0,0.10725655]
[1617720584190,1.23969655,57843.0,57840.0,0.4704]
[1617720584789,1.0,57841.0,57840.0,0.4704]
[1617720585287,1.0,57841.0,57823.0,0.28659978]
[1617720585488,1.0,57841.0,57824.0,0.10725655]
[1617720586390,1.0,57837.0,57824.0,0.10725655]
[1617720586693,1.0,57830.0,57824.0,0.10725655]
[1617720586889,1.11779,57830.0,57824.0,0.10725655]
[1617720587090,1.0,57829.0,57824.0,0.10725655]
[1617720587489,0.10725655,57825.0,57824.0,0.10725655]
[1617720590694,0.2,57864.0,57824.0,0.10725655]
[1617720590994,1.0,57849.0,57824.0,0.24006655]
[1617720591193,1.0,57850.0,57824.0,1.74006655]
[1617720591394,1.0,57853.0,57841.0,0.10725655]
[1617720591596,0.0521,57848.0,57841.0,0.10725655]
[1617720591798,1.0,57853.0,57841.0,0.10725655]
[1617720591996,1.0,57852.0,57841.0,0.10725655]
[1617720592197,1.0,57850.0,57841.0,0.10725655]
[1617720592495,1.14664,57850.0,57841.0,0.10725655]
[1617720593496,0.10725655,57842.0,57841.0,0.10725655]
[1617720594196,0.15855655,57842.0,57841.0,0.10725655]
[1617720594397,0.10725655,57842.0,57841.0,0.10725655]
[1617720595396,1.0,57862.0,57841.0,0.10725655]
[1617720595595,1.0,57862.0,57841.0,1.71359655]
[1617720595795,0.0812,57869.0,57847.0,2.6492]
[1617720595995,0.44352347,57878.0,57847.0,2.6492]
[1617720596195,1.0,57875.0,57847.0,2.6492]
[1617720596496,1.0,57876.0,57848.0,1.5]
[1617720596697,1.0,57879.0,57850.0,1.0]
[1617720596901,0.4434973,57885.0,57851.0,1.5]
[1617720597097,1.0,57882.0,57853.0,1.0]
[1617720597298,1.0,57882.0,57853.0,1.12983]
[1617720597597,0.44348072,57890.0,57869.0,0.26500655]
[1617720597798,0.2,57893.0,57869.0,0.26500655]
[1617720597799,1.0,57884.0,57869.0,0.26500655]
[1617720598305,0.44346802,57891.0,57869.0,0.26500655]
[1617720598702,1.44342825,57895.0,57869.0,3.55570655]
[1617720599098,1.23462761,57896.0,57869.0,3.55570655]
[1617720599297,1.0812,57896.0,57869.0,3.55570655]
[1617720599501,0.0812,57896.0,57886.0,0.10725655]
[1617720599700,0.0812,57896.0,57886.0,0.24551655]
[1617720600100,1.0,57895.0,57886.0,0.24551655]
[1617720600301,1.0,57895.0,57886.0,0.13826]
[1617720600501,1.0,57893.0,57886.0,0.13826]
[1617720600701,1.0,57887.0,57869.0,3.2907]
[1617720600901,0.2,57886.0,57856.0,1.5]
[1617720601101,0.2,57886.0,57853.0,1.0]
[1617720601502,0.2,57886.0,57863.0,0.10725655]
[1617720601901,1.0,57880.0,57863.0,0.10725655]
[1617720602205,1.0,57876.0,57863.0,0.10725655]
[1617720602602,1.0,57877.0,57863.0,0.10725655]
[1617720602801,1.0,57876.0,57863.0,0.10725655]
[1617720603201,0.2,57884.0,57863.0,0.10725655]
[1617720603202,1.0,57877.0,57863.0,0.10725655]
[1617720603402,0.10725655,57864.0,57863.0,0.10725655]
[1617720605804,0.10725655,57864.0,57849.0,0.4737]
[1617720607606,1.0,57876.0,57859.0,0.10725655]
[1617720608807,1.0,57877.0,57859.0,0.10725655]
[1617720609208,1.0,57878.0,57859.0,0.10725655]
[1617720609409,0.36325446,57878.0,57859.0,0.10725655]
[1617720609608,0.36325446,57878.0,57873.0,0.10725655]
[1617720609810,0.50448086,57888.0,57873.0,0.10725655]
[1617720609811,0.36293166,57886.0,57873.0,0.20411655]
[1617720610611,1.0,57887.0,57873.0,0.20411655]
[1617720610911,1.0,57884.0,57873.0,0.20411655]
[1617720611613,0.10725655,57874.0,57873.0,0.10725655]
[1617720612012,0.10725655,57874.0,57871.0,3.6502]
[1617720613612,0.10725655,57874.0,57872.0,0.10725655]
[1617720615612,0.10725655,57874.0,57857.0,3.2318]
[1617720615820,0.25134655,57874.0,57857.0,3.2318]
[1617720617316,0.10725655,57874.0,57858.0,1.0]
[1617720617517,0.10725655,57874.0,57873.0,0.10725655]
[1617720621017,0.47285726,57874.0,57873.0,0.10725655]
[1617720622817,0.91967561,57874.0,57873.0,0.10725655]
[1617720627024,0.10725655,57874.0,57873.0,0.10725655]
[1617720628123,0.10725655,57874.0,57873.0,0.22536655]
[1617720629323,0.3655532,57876.0,57873.0,0.22536655]
[1617720629522,0.3655532,57876.0,57873.0,1.72536655]
[1617720629724,0.3655532,57876.0,57875.0,1.0]
[1617720629924,0.36554028,57878.0,57875.0,2.5]
[1617720630327,0.10725655,57885.0,57875.0,2.5]
[1617720630328,0.36552279,57880.0,57879.0,1.0]
[1617720630726,0.36552279,57880.0,57877.0,1.0]
[1617720630927,0.36552142,57883.0,57875.0,1.5]
[1617720631328,0.36552038,57885.0,57875.0,1.5]
[1617720631526,0.36552038,57885.0,57875.0,2.5]
[1617720631726,0.3653589,57886.0,57884.0,0.10725655]
[1617720632027,0.44654411,57890.0,57884.0,0.10725655]
[1617720632427,0.44685172,57886.0,57884.0,0.10725655]
[1617720633027,0.61502875,57892.0,57884.0,0.10725655]
[1617720633028,0.44685074,57887.0,57884.0,0.10725655]
[1617720633628,0.10725655,57885.0,57884.0,0.10725655]
[1617720635129,0.55410521,57885.0,57884.0,0.10725655]
[1617720635628,0.46351991,57895.0,57884.0,0.20591655]
[1617720635629,0.44684954,57887.0,57884.0,0.20591655]
[1617720636029,0.44682975,57888.0,57884.0,0.20591655]
[1617720636430,0.44683148,57889.0,57884.0,0.20591655]
[1617720636830,0.44683148,57889.0,57884.0,0.10725655]
[1617720637431,0.10725655,57892.0,57884.0,0.10725655]
[1617720637432,0.44686284,57885.0,57884.0,0.10725655]
[1617720637632,0.55411939,57885.0,57884.0,0.10725655]
[1617720639657,0.44686284,57885.0,57884.0,0.10725655]
[1617720639935,0.446819,57889.0,57884.0,0.10725655]
[1617720640133,0.446819,57889.0,57885.0,0.2]
[1617720640337,0.44680779,57892.0,57885.0,0.2]
[1617720640534,0.44680779,57892.0,57887.0,0.2]
[1617720640734,0.44679114,57896.0,57888.0,2.5]
[1617720640934,0.44679114,57896.0,57889.0,0.2]
[1617720641235,0.46529542,57914.0,57889.0,0.2]
[1617720641236,0.44677821,57898.0,57891.0,1.0]
[1617720641434,0.44677821,57898.0,57894.0,1.0]
[1617720641635,0.55402066,57899.0,57897.0,0.10725655]
[1617720641834,0.55402066,57899.0,57897.0,0.26461655]
[1617720642034,0.44676411,57899.0,57897.0,1.26461655]
[1617720642438,0.44676411,57899.0,57898.0,1.0]
[1617720642638,0.44590568,57903.0,57898.0,1.2]
[1617720642838,0.44590568,57903.0,57898.0,0.2]
[1617720643138,0.44590568,57903.0,57899.0,1.0]
[1617720643336,0.44590568,57903.0,57898.0,0.2]
[1617720643537,0.44590568,57903.0,57900.0,1.0]
[1617720643736,0.44590568,57903.0,57899.0,1.0]
[1617720643939,0.44587421,57906.0,57899.0,1.0]
[1617720644138,0.44587421,57906.0,57902.0,1.0]
[1617720644340,0.70928547,57929.0,57899.0,4.0529]
[1617720644341,0.44586672,57910.0,57900.0,0.27]
[1617720644539,0.44586672,57910.0,57903.0,0.27]
[1617720644946,0.44574462,57913.0,57903.0,1.5]
[1617720645140,0.44574462,57913.0,57907.0,1.0]
[1617720645343,0.44574462,57913.0,57908.0,1.0]
[1617720645539,0.44574462,57913.0,57909.0,1.0]
[1617720645841,0.44574462,57913.0,57912.0,0.10725655]
[1617720646042,0.44568765,57914.0,57912.0,1.10725655]
[1617720646340,0.44568765,57914.0,57912.0,1.57725655]
[1617720646541,0.36466805,57916.0,57912.0,2.07725655]
[1617720646841,0.36466805,57916.0,57913.0,1.0]
[1617720647041,0.15108754,57938.0,57912.0,2.07725655]
[1617720647042,0.36465448,57918.0,57912.0,2.07725655]
[1617720647241,0.36465448,57918.0,57916.0,1.7]
[1617720647642,0.36465471,57917.0,57916.0,1.97]
[1617720648143,0.36465471,57917.0,57916.0,2.97]
[1617720648542,0.3646509,57918.0,57916.0,2.97]
[1617720649042,0.3646509,57918.0,57916.0,1.97]
[1617720649244,0.3646509,57918.0,57917.0,1.0]
[1617720649444,0.15108754,57938.0,57917.0,1.0]
[1617720649445,0.36465457,57920.0,57918.0,1.5]
[1617720649843,0.36465457,57920.0,57919.0,1.60725655]
[1617720650043,0.36465457,57920.0,57919.0,2.60725655]
[1617720650245,0.36465126,57921.0,57919.0,2.60725655]
[1617720650644,0.36464962,57920.0,57919.0,2.60725655]
[1617720651043,0.36464962,57920.0,57919.0,1.60725655]
[1617720651443,0.36464962,57920.0,57919.0,2.60725655]
[1617720651644,0.10725655,57930.0,57919.0,2.60725655]
[1617720651645,0.36464422,57921.0,57919.0,2.60725655]
[1617720651843,0.36464422,57921.0,57919.0,1.60725655]
[1617720652044,0.42597387,57920.0,57919.0,0.10725655]
[1617720652944,0.36464222,57920.0,57919.0,0.10725655]
[1617720653546,0.36464283,57921.0,57919.0,0.10725655]
[1617720654145,0.10725655,57924.0,57919.0,0.10725655]
[1617720655045,0.10725655,57924.0,57919.0,3.63505655]
[1617720656145,0.10725655,57924.0,57919.0,0.10725655]
[1617720656347,0.47127842,57924.0,57919.0,0.10725655]
[1617720656848,0.36402267,57923.0,57919.0,0.10725655]
[1617720657247,0.10725655,57924.0,57919.0,0.10725655]
[1617720657847,0.47127801,57924.0,57919.0,0.10725655]
[1617720658350,0.36401959,57923.0,57919.0,0.10725655]
[1617720658648,0.42534779,57923.0,57919.0,0.10725655]
[1617720659351,0.36401297,57925.0,57922.0,1.0]
[1617720659551,0.36399815,57928.0,57922.0,1.0]
[1617720659850,0.36399815,57928.0,57927.0,0.10725655]
[1617720660052,0.3640056,57930.0,57927.0,0.10725655]
[1617720660653,0.3640056,57930.0,57920.0,2.9205]
[1617720660854,0.3640056,57930.0,57911.0,1.0]
[1617720661053,0.06132588,57937.0,57910.0,1.0]
[1617720661054,0.36400876,57928.0,57910.0,1.0]
[1617720661253,0.36400876,57928.0,57904.0,1.5]
[1617720661453,0.36402729,57925.0,57904.0,1.5]
[1617720661652,0.48277729,57925.0,57904.0,1.5]
[1617720661854,0.36404187,57921.0,57914.0,0.10725655]
[1617720662554,0.36404025,57920.0,57914.0,0.10725655]
[1617720662956,0.3640331,57921.0,57914.0,0.10725655]
[1617720663255,0.36403889,57923.0,57914.0,0.10725655]
[1617720663755,0.36403733,57922.0,57914.0,0.10725655]
[1617720663955,0.36403733,57922.0,57920.0,0.10725655]
[1617720664156,0.3640368,57921.0,57920.0,0.10725655]
[1617720664655,0.5116568,57921.0,57920.0,0.10725655]
[1617720664856,0.5116568,57921.0,57900.0,3.5514]
[1617720665157,0.2,57920.0,57900.0,3.5514]
[1617720665456,1.0,57909.0,57900.0,3.5514]
[1617720665656,1.0,57909.0,57899.0,0.4581]
[1617720665657,1.13926,57909.0,57899.0,0.4581]
[1617720665857,1.13926,57909.0,57905.0,0.10725655]
[1617720666071,1.13926,57909.0,57906.0,0.0519]
[1617720666258,0.13926,57909.0,57906.0,0.0519]
[1617720666859,1.13926,57909.0,57906.0,0.0519]
[1617720667159,1.0,57907.0,57898.0,0.0515]
[1617720667358,1.0,57900.0,57898.0,0.0515]
[1617720667661,0.2,57899.0,57875.0,0.28881301]
[1617720667857,0.10725655,57887.0,57877.0,0.10725655]
[1617720668062,1.24940655,57887.0,57877.0,0.10725655]
[1617720669460,0.24940655,57887.0,57877.0,0.10725655]
[1617720669759,0.10725655,57887.0,57877.0,0.10725655]
[1617720673968,0.10725655,57887.0,57886.0,0.57205655]
[1617720679573,0.36449182,57901.0,57887.0,1.5]
[1617720679974,0.36449182,57901.0,57900.0,3.40705655]
[1617720680175,0.3653275,57903.0,57900.0,3.40705655]
[1617720680576,0.36531994,57905.0,57900.0,3.40705655]
[1617720681377,0.36531379,57906.0,57900.0,0.21795655]
[1617720681776,0.36566795,57902.0,57900.0,0.21795655]
[1617720681975,0.10725655,57901.0,57900.0,0.21795655]
[1617720683278,0.10725655,57901.0,57900.0,0.10725655]
[1617720683478,0.4729393,57901.0,57900.0,0.10725655]
[1617720683682,0.6172593,57901.0,57886.0,0.75568172]
[1617720683892,0.6172593,57901.0,57886.0,0.4648]
[1617720684084,0.10725655,57887.0,57886.0,0.4648]
[1617720684283,0.24665655,57887.0,57886.0,0.4648]
[1617720685986,0.10725655,57887.0,57886.0,0.4648]
[1617720686585,0.36570554,57893.0,57886.0,0.4648]
[1617720686785,0.36570554,57893.0,57886.0,0.59178]
[1617720687285,0.36569895,57898.0,57886.0,0.59178]
[1617720687786,0.36568861,57899.0,57887.0,1.0]
[1617720687985,0.36568861,57899.0,57898.0,0.10725655]
[1617720688185,0.36568861,57899.0,57898.0,0.22424655]
[1617720688386,0.10725655,57904.0,57898.0,0.11699]
[1617720688886,0.3656798,57900.0,57898.0,0.11699]
[1617720689287,0.36568482,57899.0,57898.0,0.11699]
[1617720689586,0.36568482,57899.0,57886.0,0.4648]
[1617720689988,0.36568482,57899.0,57891.0,0.10725655]
[1617720690388,1.0,57915.0,57891.0,0.10725655]
[1617720690389,0.36568195,57897.0,57891.0,0.10725655]
[1617720690888,0.36568247,57899.0,57891.0,0.10725655]
[1617720691788,0.36637263,57897.0,57891.0,0.10725655]
[1617720691987,0.10725655,57892.0,57891.0,0.10725655]
[1617720692188,0.36637263,57897.0,57891.0,0.10725655]
[1617720693191,0.36659108,57899.0,57894.0,0.29104512]
[1617720693389,0.36659108,57899.0,57894.0,1.29104512]
[1617720693589,0.36658897,57900.0,57895.0,0.29099519]
[1617720693989,0.06133903,57921.0,57899.0,0.10725655]
[1617720693990,0.36658198,57902.0,57899.0,0.10725655]
[1617720694191,0.36658198,57902.0,57899.0,0.20499655]
[1617720694790,0.36658436,57901.0,57899.0,0.20499655]
[1617720695291,0.36658453,57902.0,57899.0,0.20499655]
[1617720695491,0.36658453,57902.0,57900.0,1.5]
[1617720695692,0.36655117,57903.0,57900.0,2.5]
[1617720695892,0.36655117,57903.0,57901.0,4.3864]
[1617720696093,0.36652078,57910.0,57902.0,0.64049917]
[1617720696291,0.36652078,57910.0,57903.0,0.2]
[1617720696495,0.36650969,57912.0,57908.0,1.0]
[1617720696993,0.57006965,57931.0,57908.0,1.0]
[1617720697293,0.36648924,57914.0,57910.0,1.0]
[1617720697494,0.36648924,57914.0,57910.0,1.2]
[1617720697695,0.36648924,57914.0,57912.0,1.0]
[1617720697895,0.36648395,57915.0,57912.0,1.11982]
[1617720698095,0.36648395,57915.0,57914.0,0.10725655]
[1617720698295,0.36647874,57917.0,57914.0,0.10725655]
[1617720698699,0.36648686,57915.0,57914.0,0.10725655]
[1617720699197,0.36651159,57916.0,57914.0,0.10725655]
[1617720699499,0.13897,57915.0,57914.0,0.10725655]
[1617720699698,0.50548701,57915.0,57914.0,0.10725655]
[1617720700199,1.12201927,57915.0,57914.0,0.10725655]
[1617720700600,0.67407128,57915.0,57914.0,0.10725655]
[1617720701100,1.12202327,57915.0,57914.0,0.10725655]
[1617720703601,1.01476672,57915.0,57914.0,0.10725655]
[1617720704202,1.01476672,57915.0,57914.0,3.56255655]
[1617720706304,1.12202327,57915.0,57914.0,3.56255655]
[1617720707107,0.69417854,57915.0,57914.0,3.56255655]
[1617720707816,0.69417854,57915.0,57914.0,0.10725655]
[1617720710907,0.69417854,57915.0,57908.0,0.29339518]
[1617720711107,1.69417854,57915.0,57908.0,0.29339518]
[1617720711309,0.44854069,57909.0,57902.0,0.29389333]
[1617720711808,0.44854212,57904.0,57901.0,0.29411468]
[1617720712311,0.10725655,57902.0,57900.0,0.40141715]
[1617720712508,0.24643655,57902.0,57900.0,0.40141715]
[1617720712811,0.24643655,57902.0,57900.0,0.10725655]
[1617720713008,0.69498183,57902.0,57900.0,0.10725655]
[1617720714110,0.44862567,57901.0,57900.0,0.10725655]
[1617720716413,0.44862567,57901.0,57896.0,0.29467192]
[1617720717013,0.44865224,57897.0,57895.0,0.29519909]
[1617720717416,0.44865224,57897.0,57894.0,0.29533485]
[1617720717813,0.44865224,57897.0,57891.0,0.35440182]
[1617720717814,0.4486568,57896.0,57893.0,0.29530301]
[1617720718113,0.10725655,57894.0,57893.0,0.29530301]
[1617720719617,0.20500655,57894.0,57893.0,0.29530301]
[1617720720820,1.20500655,57894.0,57893.0,0.29530301]
[1617720721043,1.65367406,57894.0,57891.0,0.29558169]
[1617720721421,1.65367406,57894.0,57889.0,0.4797]
[1617720721720,1.0,57892.0,57889.0,0.4797]
[1617720722021,1.44871286,57890.0,57889.0,0.4797]
[1617720722421,1.44871286,57890.0,57887.0,0.4861]
[1617720723023,1.44871234,57888.0,57887.0,0.4861]
[1617720724226,2.06589882,57888.0,57887.0,0.4861]
[1617720726326,2.26589882,57888.0,57887.0,0.4861]
[1617720726524,2.06589882,57888.0,57887.0,0.4861]
[1617720727025,1.75596889,57888.0,57887.0,0.4861]
[1617720727226,1.55596889,57888.0,57887.0,0.4861]
[1617720727428,3.19241294,57888.0,57887.0,0.4636]
[1617720727830,3.70067999,57888.0,57887.0,0.4636]
[1617720728027,3.70067999,57888.0,57868.0,0.29759452]
[1617720728229,0.10725655,57869.0,57864.0,0.2977182]
[1617720728429,0.24413655,57869.0,57864.0,0.2977182]
[1617720728630,0.24413655,57869.0,57862.0,0.29776197]
[1617720728929,1.24413655,57869.0,57862.0,0.29776197]
[1617720729132,1.0,57863.0,57860.0,0.29733105]
[1617720729533,1.0,57863.0,57853.0,0.43608554]
[1617720729534,1.0,57863.0,57856.0,0.29754742]
[1617720729733,1.0,57861.0,57856.0,0.29754742]
[1617720730234,1.24309655,57857.0,57856.0,0.29754742]
[1617720730634,0.24309655,57857.0,57856.0,0.29754742]
[1617720730836,1.24309655,57857.0,57856.0,0.29754742]
[1617720731036,1.24309655,57857.0,57855.0,0.29757979]
[1617720731437,1.24309655,57857.0,57850.0,0.29776077]
[1617720731738,1.24309655,57857.0,57847.0,0.4706]
[1617720731739,1.0,57856.0,57847.0,0.4706]
[1617720731936,1.0,57850.0,57847.0,0.4706]
[1617720732137,0.10725655,57848.0,57847.0,0.4706]
[1617720732337,1.10725655,57848.0,57847.0,0.4706]
[1617720734840,0.10725655,57848.0,57844.0,0.29768402]
[1617720735039,1.10725655,57848.0,57844.0,0.29768402]
[1617720735239,1.10725655,57848.0,57839.0,0.29790297]
[1617720735240,1.0,57845.0,57839.0,0.29790297]
[1617720735539,1.0,57840.0,57839.0,0.29790297]
[1617720735742,1.0,57840.0,57836.0,0.29802685]
[1617720735938,1.0,57842.0,57836.0,0.29802685]
[1617720736140,1.0,57843.0,57835.0,0.29791251]
[1617720736340,0.10725655,57837.0,57835.0,0.29791251]
[1617720737040,0.0517,57877.0,57833.0,0.2]
[1617720737041,0.44748929,57850.0,57836.0,2.90745029]
[1617720737341,0.44748929,57850.0,57837.0,0.2]
[1617720737543,1.0,57872.0,57843.0,1.0]
[1617720737742,1.0,57872.0,57854.0,3.4396]
[1617720737944,1.0,57872.0,57854.0,3.5738]
[1617720738143,1.0,57873.0,57854.0,3.5738]
[1617720738344,1.0,57873.0,57862.0,0.10725655]
[1617720739545,1.0,57874.0,57862.0,0.10725655]
[1617720740347,0.10725655,57863.0,57862.0,0.10725655]
[1617720742649,1.10725655,57863.0,57854.0,3.4396]
[1617720743750,0.0521,57862.0,57854.0,3.4396]
[1617720743948,1.10725655,57863.0,57854.0,3.4396]
[1617720744349,1.0,57863.0,57855.0,0.10725655]
[1617720744550,1.0,57863.0,57854.0,3.4396]
[1617720744748,1.5,57874.0,57839.0,0.4656]
[1617720744749,1.0,57858.0,57839.0,0.4656]
[1617720744949,1.0,57857.0,57839.0,0.4656]
[1617720745553,1.0,57858.0,57839.0,0.4656]
[1617720745751,3.0434,57873.0,57839.0,0.61407]
[1617720745953,1.0,57861.0,57839.0,0.61407]
[1617720746152,3.0434,57873.0,57839.0,0.61407]
[1617720746153,1.0,57867.0,57839.0,0.61407]
[1617720746359,1.0,57863.0,57861.0,0.10725655]
[1617720746653,0.36319196,57876.0,57861.0,0.10725655]
[1617720746654,1.0,57867.0,57861.0,0.10725655]
[1617720746956,0.0523,57869.0,57861.0,0.10725655]
[1617720747156,1.0,57870.0,57861.0,0.10725655]
[1617720747461,1.5,57881.0,57861.0,0.10725655]
[1617720747652,1.5,57881.0,57860.0,2.9292]
[1617720748054,1.94391263,57881.0,57860.0,2.9292]
[1617720748253,1.94391263,57881.0,57840.0,0.10725655]
[1617720748254,1.0,57861.0,57840.0,0.10725655]
[1617720749156,1.0,57861.0,57839.0,0.4656]
[1617720749357,1.0,57847.0,57839.0,0.4656]
[1617720749657,1.0,57846.0,57839.0,0.4656]
[1617720750356,0.10725655,57840.0,57839.0,0.4656]
[1617720752260,0.10725655,57846.0,57839.0,0.57285655]
[1617720752459,0.10725655,57846.0,57845.0,3.72]
[1617720753862,0.0812,57868.0,57845.0,3.72]
[1617720754461,0.0812,57868.0,57862.0,0.10725655]
[1617720755061,0.0812,57868.0,57845.0,3.72]
[1617720755062,1.0,57866.0,57845.0,3.72]
[1617720755262,1.0,57863.0,57845.0,3.72]
[1617720755962,0.0812,57868.0,57845.0,3.72]
[1617720756163,1.0,57856.0,57845.0,3.72]
[1617720756363,0.10725655,57846.0,57845.0,3.72]
[1617720757165,1.0,57863.0,57845.0,3.72]
[1617720757367,1.0812,57868.0,57845.0,3.86276]
[1617720757965,0.0812,57868.0,57845.0,3.86276]
[1617720758568,1.0,57867.0,57845.0,3.86276]
[1617720758768,1.0,57864.0,57845.0,3.86276]
[1617720759269,1.0,57865.0,57845.0,3.86276]
[1617720759468,0.0812,57868.0,57845.0,3.86276]
[1617720759669,1.0,57866.0,57845.0,3.86276]
[1617720759869,0.0812,57868.0,57845.0,3.86276]
[1617720760271,0.0812,57868.0,57867.0,0.10725655]
[1617720760471,1.0,57880.0,57867.0,0.20902655]
[1617720760671,1.0,57880.0,57878.0,3.2768]
[1617720760872,1.0,57881.0,57878.0,3.2768]
[1617720761475,1.0,57879.0,57878.0,3.2768]
[1617720761674,1.0,57880.0,57878.0,3.2768]
[1617720761877,1.0,57880.0,57867.0,0.20902655]
[1617720762075,1.0,57879.0,57867.0,0.20902655]
[1617720762276,1.0,57879.0,57853.0,0.1281]
[1617720762476,0.10725655,57868.0,57854.0,0.10725655]
[1617720763174,1.13663,57866.0,57854.0,0.10725655]
[1617720763376,0.13663,57866.0,57854.0,0.10725655]
[1617720764380,0.10725655,57855.0,57854.0,0.10725655]
[1617720766578,0.36413731,57870.0,57854.0,1.10725655]
[1617720766779,0.36412371,57875.0,57869.0,3.696]
[1617720766982,0.36412371,57875.0,57869.0,3.83146]
[1617720767382,0.36410094,57879.0,57869.0,3.83146]
[1617720767896,0.36407127,57881.0,57872.0,1.0]
[1617720768091,0.36407127,57881.0,57873.0,1.5]
[1617720768295,0.36407127,57881.0,57878.0,1.0]
[1617720768489,0.10725655,57889.0,57880.0,1.10725655]
[1617720768902,0.10725655,57889.0,57884.0,1.15228]
[1617720769101,0.10725655,57889.0,57888.0,1.0]
[1617720769889,0.10725655,57889.0,57888.0,3.2055]
[1617720770498,0.10725655,57889.0,57888.0,3.31275655]
[1617720771688,0.25040655,57889.0,57870.0,0.29596797]
[1617720771888,0.25040655,57889.0,57866.0,0.29624361]
[1617720772088,1.0,57887.0,57866.0,0.29624361]
[1617720772287,0.25040655,57889.0,57863.0,0.29645839]
[1617720772489,0.10725655,57867.0,57863.0,0.29645839]
[1617720772888,0.10725655,57867.0,57862.0,0.4903]
[1617720773087,0.10725655,57867.0,57864.0,0.27]
[1617720773488,0.10725655,57867.0,57863.0,0.27]
[1617720773788,0.10725655,57867.0,57865.0,0.27]
[1617720773989,0.10725655,57867.0,57863.0,0.27]
[1617720774389,0.10725655,57867.0,57866.0,0.37725655]
[1617720774691,0.10725655,57867.0,57866.0,0.10725655]
[1617720775888,0.36472804,57887.0,57866.0,0.10725655]
[1617720776088,0.36473342,57886.0,57866.0,0.10725655]
[1617720776489,0.36472825,57888.0,57881.0,0.10725655]
[1617720776990,0.36472069,57889.0,57881.0,0.10725655]
[1617720777591,1.0,57887.0,57881.0,0.10725655]
[1617720777792,1.14931,57887.0,57881.0,0.10725655]
[1617720777992,1.0,57884.0,57881.0,0.10725655]
[1617720778192,0.51402876,57887.0,57881.0,0.10725655]
[1617720778592,0.10725655,57882.0,57881.0,0.10725655]
[1617720781299,0.10725655,57882.0,57868.0,0.1281]
[1617720782303,0.47201123,57882.0,57868.0,0.1281]
[1617720782500,0.10725655,57869.0,57868.0,0.1281]
[1617720782802,1.26358655,57869.0,57867.0,0.10725655]
[1617720783001,1.26358655,57869.0,57862.0,0.4903]
[1617720784102,0.10725655,57869.0,57862.0,0.4903]
[1617720784502,0.10725655,57863.0,57862.0,0.4903]
[1617720787004,0.15935655,57863.0,57862.0,0.4903]
[1617720787706,0.10725655,57863.0,57862.0,0.4903]
[1617720789208,0.15925655,57863.0,57862.0,0.4903]
[1617720789708,1.25382655,57863.0,57862.0,0.4903]
[1617720790509,0.25382655,57863.0,57862.0,0.4903]
[1617720790711,0.30502655,57863.0,57862.0,0.4903]
[1617720790911,0.25382655,57863.0,57862.0,0.4903]
[1617720791714,0.10725655,57863.0,57862.0,0.4903]
[1617720792317,0.10725655,57863.0,57862.0,0.61652]
[1617720792915,0.15955655,57863.0,57862.0,0.61652]
[1617720793519,0.15955655,57863.0,57862.0,0.4903]
[1617720793915,0.15955655,57863.0,57862.0,0.5421]
[1617720794317,0.10725655,57863.0,57862.0,0.4903]
[1617720795720,0.10725655,57863.0,57862.0,3.3658]
[1617720795923,0.3653704,57872.0,57862.0,3.3658]
[1617720796423,0.36533336,57878.0,57862.0,4.66456553]
[1617720796621,0.36533336,57878.0,57877.0,0.22137655]
[1617720796922,0.47257859,57880.0,57877.0,0.22137655]
[1617720797422,0.42705333,57878.0,57877.0,0.22137655]
[1617720797925,0.47294701,57880.0,57877.0,0.22137655]
[1617720798421,0.10725655,57880.0,57877.0,0.22137655]
[1617720799121,0.36568883,57881.0,57878.0,0.052]
[1617720799321,0.36568883,57881.0,57880.0,3.5643]
[1617720799722,0.36566179,57888.0,57880.0,3.5643]
[1617720800223,0.36565088,57891.0,57880.0,3.5643]